[Event "*** SCC Grand Prix: Titled Tuesday Blitz"]
[Site "Chess.com"]
[Date "2020.06.09"]
[Round "10"]
[White "CrazyMartian"]
[Black "SergioGarciaFuentes"]
[Result "1-0"]
[WhiteElo "2274"]
[BlackElo "2213"]
[TimeControl "180+1"]
[EndTime "10:58:18 PDT"]
[Termination "CrazyMartian won by resignation"]

1. d4 {[%clk 0:03:00.9]} 1... d5 {[%clk 0:02:56.7]} 2. Bf4 {[%clk 0:02:58.3]}
2... Nc6 {[%clk 0:02:56.2]} 3. Nf3 {[%clk 0:02:57.3]} 3... Bg4 {[%clk
0:02:55.7]} 4. Nbd2 {[%clk 0:02:55.8]} 4... e6 {[%clk 0:02:55.6]} 5. c3 {[%clk
0:02:54]} 5... Bd6 {[%clk 0:02:55.1]} 6. Bg3 {[%clk 0:02:54.2]} 6... Nf6 {[%clk
0:02:54.3]} 7. e3 {[%clk 0:02:42.6]} 7... Bxg3 {[%clk 0:02:40.1]} 8. hxg3 {[%clk
0:02:42.1]} 8... e5 {[%clk 0:02:40.6]} 9. dxe5 {[%clk 0:02:41.3]} 9... Nxe5
{[%clk 0:02:40.1]} 10. Qa4+ {[%clk 0:02:34.2]} 10... Bd7 {[%clk 0:02:38.4]} 11.
Qf4 {[%clk 0:02:31.1]} 11... Ng6 {[%clk 0:02:17.7]} 12. Qb4 {[%clk 0:02:30.5]}
12... b6 {[%clk 0:02:13.7]} 13. Bb5 {[%clk 0:02:20.6]} 13... c6 {[%clk
0:02:01.1]} 14. Bd3 {[%clk 0:02:15.9]} 14... c5 {[%clk 0:02:00.7]} 15. Qa3
{[%clk 0:02:16]} 15... O-O {[%clk 0:01:54.6]} 16. Bxg6 {[%clk 0:02:02.2]} 16...
fxg6 {[%clk 0:01:42.2]} 17. O-O {[%clk 0:01:40.8]} 17... Bb5 {[%clk 0:01:35.1]}
18. Rfe1 {[%clk 0:01:40.1]} 18... Ne4 {[%clk 0:01:15.3]} 19. Nxe4 {[%clk
0:01:28]} 19... dxe4 {[%clk 0:01:16.2]} 20. Qb3+ {[%clk 0:01:26.4]} 20... Kh8
{[%clk 0:01:09.3]} 21. Qxb5 {[%clk 0:01:20.2]} 21... exf3 {[%clk 0:01:10.2]} 22.
gxf3 {[%clk 0:01:15.3]} 22... Rxf3 {[%clk 0:01:04.6]} 23. Kg2 {[%clk 0:01:15]}
23... Rf6 {[%clk 0:00:57.5]} 24. Rad1 {[%clk 0:01:10.6]} 24... Qf8 {[%clk
0:00:57.9]} 25. Qe2 {[%clk 0:01:08.6]} 25... Qf7 {[%clk 0:00:56]} 26. c4 {[%clk
0:01:05.4]} 26... Rf8 {[%clk 0:00:54.1]} 27. Rf1 {[%clk 0:01:05.1]} 27... Rf3
{[%clk 0:00:43.8]} 28. e4 {[%clk 0:01:02.8]} 28... h6 {[%clk 0:00:35.7]} 29. b3
{[%clk 0:00:51.3]} 29... Kh7 {[%clk 0:00:34.5]} 30. e5 {[%clk 0:00:46.8]} 30...
Qe6 {[%clk 0:00:33.5]} 31. Rd6 {[%clk 0:00:42.9]} 31... Qg4 {[%clk 0:00:31.5]}
32. Qd2 {[%clk 0:00:20.5]} 32... h5 {[%clk 0:00:28]} 33. Rd3 {[%clk 0:00:15.9]}
33... h4 {[%clk 0:00:25.3]} 34. Rh1 {[%clk 0:00:14]} 34... h3+ {[%clk
0:00:22.2]} 35. Rxh3+ {[%clk 0:00:13.4]} 35... Kg8 {[%clk 0:00:22.3]} 36. Rxf3
{[%clk 0:00:13.1]} 36... Qxf3+ {[%clk 0:00:19.8]} 37. Kg1 {[%clk 0:00:13.3]}
37... Qe4 {[%clk 0:00:18.8]} 38. Qd5+ {[%clk 0:00:13.2]} 38... Qxd5 {[%clk
0:00:18.2]} 39. cxd5 {[%clk 0:00:14.1]} 39... Rf5 {[%clk 0:00:19.1]} 40. f4
{[%clk 0:00:13.6]} 40... g5 {[%clk 0:00:19.1]} 41. Rh5 {[%clk 0:00:13.3]} 41...
b5 {[%clk 0:00:16.3]} 42. Rxg5 {[%clk 0:00:13.4]} 42... Rf8 {[%clk 0:00:16]} 43.
Kf2 {[%clk 0:00:13.5]} 43... a5 {[%clk 0:00:15.3]} 44. d6 {[%clk 0:00:10.3]}
44... Kf7 {[%clk 0:00:13.4]} 45. Rf5+ {[%clk 0:00:10.1]} 45... Ke8 {[%clk
0:00:12.6]} 46. Rxf8+ {[%clk 0:00:11]} 46... Kxf8 {[%clk 0:00:13.4]} 47. e6
{[%clk 0:00:11.4]} 47... c4 {[%clk 0:00:11]} 48. bxc4 {[%clk 0:00:11.2]} 48...
b4 {[%clk 0:00:11.1]} 49. Ke3 {[%clk 0:00:10.8]} 49... a4 {[%clk 0:00:11.5]} 50.
Kd2 {[%clk 0:00:11.1]} 50... b3 {[%clk 0:00:12.2]} 51. axb3 {[%clk 0:00:10.9]}
51... a3 {[%clk 0:00:12.8]} 52. Kc1 {[%clk 0:00:11.1]} 52... a2 {[%clk
0:00:13.3]} 53. Kb2 {[%clk 0:00:11.3]} 1-0

[Event "*** SCC Grand Prix: Titled Tuesday Blitz"]
[Site "Chess.com"]
[Date "2020.06.09"]
[Round "10"]
[White "AshotParvanyan"]
[Black "Nor1lsk"]
[Result "0-1"]
[WhiteElo "2434"]
[BlackElo "2591"]
[TimeControl "180+1"]
[EndTime "10:58:19 PDT"]
[Termination "Nor1lsk won by resignation"]

1. e4 {[%clk 0:03:00.9]} 1... c5 {[%clk 0:03:00.3]} 2. Nf3 {[%clk 0:03:00.7]}
2... e6 {[%clk 0:03:00.3]} 3. Nc3 {[%clk 0:02:58.5]} 3... Nc6 {[%clk 0:02:57.3]}
4. Bb5 {[%clk 0:02:58.1]} 4... Nge7 {[%clk 0:02:55.3]} 5. O-O {[%clk 0:02:57.7]}
5... a6 {[%clk 0:02:54.7]} 6. Bxc6 {[%clk 0:02:58]} 6... Nxc6 {[%clk 0:02:55.1]}
7. d4 {[%clk 0:02:58.5]} 7... cxd4 {[%clk 0:02:55.7]} 8. Nxd4 {[%clk 0:02:58.5]}
8... d6 {[%clk 0:02:56.1]} 9. Re1 {[%clk 0:02:51]} 9... Be7 {[%clk 0:02:55.7]}
10. Nxc6 {[%clk 0:02:35.6]} 10... bxc6 {[%clk 0:02:54.9]} 11. Qg4 {[%clk
0:02:35.6]} 11... e5 {[%clk 0:02:42]} 12. Qxg7 {[%clk 0:01:57.8]} 12... Bf6
{[%clk 0:02:41.8]} 13. Qg3 {[%clk 0:01:56.7]} 13... Be6 {[%clk 0:02:39.1]} 14.
Be3 {[%clk 0:01:47.6]} 14... Qe7 {[%clk 0:02:29.1]} 15. Rad1 {[%clk 0:01:42.2]}
15... O-O-O {[%clk 0:02:23.7]} 16. Qf3 {[%clk 0:01:41.3]} 16... Rhg8 {[%clk
0:02:21.2]} 17. h3 {[%clk 0:01:35.3]} 17... Rg6 {[%clk 0:02:20.2]} 18. Ne2
{[%clk 0:01:01.5]} 18... Rdg8 {[%clk 0:02:10.2]} 19. Ng3 {[%clk 0:00:58.2]}
19... Qd7 {[%clk 0:01:59.1]} 20. Kh2 {[%clk 0:00:42.3]} 20... Bh4 {[%clk
0:01:53.8]} 21. Rg1 {[%clk 0:00:17.1]} 21... Bxg3+ {[%clk 0:01:44.8]} 22. fxg3
{[%clk 0:00:18]} 22... Rxg3 {[%clk 0:01:44.5]} 23. Qxg3 {[%clk 0:00:18.3]} 23...
Rxg3 {[%clk 0:01:44.6]} 24. Kxg3 {[%clk 0:00:19.2]} 24... d5 {[%clk 0:01:38]}
25. Bc5 {[%clk 0:00:16.5]} 25... f5 {[%clk 0:01:35.2]} 26. exf5 {[%clk
0:00:15.9]} 26... Bxf5 {[%clk 0:01:35]} 27. Rgf1 {[%clk 0:00:15.9]} 27... Qg7+
{[%clk 0:01:30.8]} 28. Kh2 {[%clk 0:00:15.1]} 28... Bxc2 {[%clk 0:01:23.1]} 29.
Rd2 {[%clk 0:00:12.8]} 29... Bg6 {[%clk 0:01:19.3]} 30. Rf8+ {[%clk 0:00:12.2]}
30... Kd7 {[%clk 0:01:16.2]} 31. Rdf2 {[%clk 0:00:11.3]} 31... e4 {[%clk
0:01:13.4]} 32. Ra8 {[%clk 0:00:10.6]} 32... Qe5+ {[%clk 0:01:11.7]} 33. Kh1
{[%clk 0:00:09.2]} 33... d4 {[%clk 0:01:12]} 34. Ra7+ {[%clk 0:00:07.5]} 34...
Ke6 {[%clk 0:01:07]} 35. Re7+ {[%clk 0:00:07.6]} 35... Kd5 {[%clk 0:01:07.3]}
36. Rxe5+ {[%clk 0:00:08.5]} 36... Kxe5 {[%clk 0:01:07.8]} 37. Rd2 {[%clk
0:00:08]} 37... e3 {[%clk 0:00:57.5]} 38. Bxd4+ {[%clk 0:00:08.1]} 38... Ke4
{[%clk 0:00:57.9]} 39. Bxe3 {[%clk 0:00:06.6]} 39... Kxe3 {[%clk 0:00:58.8]} 40.
Rd6 {[%clk 0:00:06.5]} 40... Be4 {[%clk 0:00:58.9]} 41. Rd8 {[%clk 0:00:05.8]}
41... Kf2 {[%clk 0:00:58.4]} 42. Rd2+ {[%clk 0:00:05.3]} 42... Ke3 {[%clk
0:00:58.4]} 43. Rd8 {[%clk 0:00:04.6]} 43... Kf2 {[%clk 0:00:58.5]} 44. Kh2
{[%clk 0:00:04.7]} 44... Ke3 {[%clk 0:00:54.2]} 45. Re8 {[%clk 0:00:04.2]} 45...
Kd4 {[%clk 0:00:53.9]} 46. Rd8+ {[%clk 0:00:04.1]} 46... Bd5 {[%clk 0:00:53.5]}
47. g4 {[%clk 0:00:03.7]} 47... Kd3 {[%clk 0:00:53.5]} 48. Kg3 {[%clk 0:00:03]}
48... Kc2 {[%clk 0:00:53.8]} 49. b4 {[%clk 0:00:02.9]} 49... Kb2 {[%clk
0:00:51.5]} 50. a4 {[%clk 0:00:02.6]} 50... Bb3 {[%clk 0:00:49]} 51. b5 {[%clk
0:00:02.6]} 51... axb5 {[%clk 0:00:48.6]} 52. axb5 {[%clk 0:00:03.5]} 52... cxb5
{[%clk 0:00:49]} 53. Rb8 {[%clk 0:00:03.5]} 53... Bc4 {[%clk 0:00:49.1]} 54. h4
{[%clk 0:00:03.3]} 54... Kc3 {[%clk 0:00:49.4]} 55. Kf4 {[%clk 0:00:03.6]} 55...
b4 {[%clk 0:00:49.8]} 56. Kg5 {[%clk 0:00:02]} 56... b3 {[%clk 0:00:50]} 57. h5
{[%clk 0:00:02.1]} 57... b2 {[%clk 0:00:49.7]} 58. Rxb2 {[%clk 0:00:01.5]} 58...
Kxb2 {[%clk 0:00:49.5]} 59. Kh6 {[%clk 0:00:01.9]} 59... Bd3 {[%clk 0:00:49.5]}
60. g5 {[%clk 0:00:01.9]} 60... Kc3 {[%clk 0:00:49.5]} 61. Kg7 {[%clk
0:00:02.3]} 61... Kd4 {[%clk 0:00:48.7]} 62. Kf6 {[%clk 0:00:02.6]} 62... Ke3
{[%clk 0:00:47.8]} 63. h6 {[%clk 0:00:02.3]} 63... Bg6 {[%clk 0:00:47]} 64. Kg7
{[%clk 0:00:02]} 64... Kf4 {[%clk 0:00:46.7]} 65. Kf6 {[%clk 0:00:02.4]} 65...
Kg4 {[%clk 0:00:47.2]} 66. Ke5 {[%clk 0:00:02.2]} 66... Kxg5 {[%clk 0:00:48.1]}
67. Kd4 {[%clk 0:00:02.7]} 67... Kxh6 {[%clk 0:00:49]} 68. Ke3 {[%clk
0:00:02.5]} 68... Kg5 {[%clk 0:00:49.9]} 69. Kf2 {[%clk 0:00:03.4]} 69... Kg4
{[%clk 0:00:50.4]} 70. Kg1 {[%clk 0:00:04.3]} 70... h5 {[%clk 0:00:50.5]} 71.
Kh1 {[%clk 0:00:05.2]} 71... h4 {[%clk 0:00:51.1]} 72. Kg1 {[%clk 0:00:06.1]}
72... Kg3 {[%clk 0:00:51.6]} 73. Kh1 {[%clk 0:00:06.2]} 73... h3 {[%clk
0:00:52.3]} 74. Kg1 {[%clk 0:00:07.1]} 74... h2+ {[%clk 0:00:52.7]} 0-1

[Event "*** SCC Grand Prix: Titled Tuesday Blitz"]
[Site "Chess.com"]
[Date "2020.06.09"]
[Round "10"]
[White "Witik"]
[Black "2346PL"]
[Result "1-0"]
[WhiteElo "2579"]
[BlackElo "2421"]
[TimeControl "180+1"]
[EndTime "10:58:19 PDT"]
[Termination "Witik won by resignation"]

1. d4 {[%clk 0:03:00.9]} 1... f5 {[%clk 0:02:59.9]} 2. g3 {[%clk 0:03:00.6]}
2... Nf6 {[%clk 0:03:00.3]} 3. Bg2 {[%clk 0:03:00.8]} 3... g6 {[%clk 0:03:01]}
4. c3 {[%clk 0:03:01.1]} 4... Bg7 {[%clk 0:03:01.7]} 5. Qb3 {[%clk 0:03:01.8]}
5... c6 {[%clk 0:02:58.4]} 6. Nd2 {[%clk 0:03:00.4]} 6... e6 {[%clk 0:02:52.2]}
7. Nh3 {[%clk 0:02:58.1]} 7... O-O {[%clk 0:02:49.3]} 8. Nf4 {[%clk 0:02:56.7]}
8... g5 {[%clk 0:02:46.2]} 9. Nd3 {[%clk 0:02:55.4]} 9... d6 {[%clk 0:02:43.9]}
10. h4 {[%clk 0:02:50.1]} 10... g4 {[%clk 0:02:38.1]} 11. e4 {[%clk 0:02:49.6]}
11... d5 {[%clk 0:02:31.3]} 12. exf5 {[%clk 0:02:43.9]} 12... exf5 {[%clk
0:02:32.2]} 13. O-O {[%clk 0:02:42.7]} 13... Ne4 {[%clk 0:02:29.9]} 14. Nxe4
{[%clk 0:02:36.9]} 14... fxe4 {[%clk 0:02:29.7]} 15. Bxe4 {[%clk 0:02:37.1]}
15... Nd7 {[%clk 0:02:10.6]} 16. Bg2 {[%clk 0:02:22.5]} 16... b6 {[%clk
0:02:10.3]} 17. Nf4 {[%clk 0:02:05.3]} 17... Nf6 {[%clk 0:02:06.4]} 18. Re1
{[%clk 0:01:58.5]} 18... Qd6 {[%clk 0:02:02]} 19. c4 {[%clk 0:01:52.8]} 19...
Rd8 {[%clk 0:01:49.3]} 20. cxd5 {[%clk 0:01:50.8]} 20... cxd5 {[%clk 0:01:49.5]}
21. Nxd5 {[%clk 0:01:01.1]} 21... Nxd5 {[%clk 0:01:47.3]} 22. Bxd5+ {[%clk
0:01:00.5]} 22... Qxd5 {[%clk 0:01:13.1]} 23. Re8+ {[%clk 0:00:59.6]} 23... Rxe8
{[%clk 0:01:13.7]} 24. Qxd5+ {[%clk 0:00:59.4]} 24... Be6 {[%clk 0:01:14.4]} 25.
Qg5 {[%clk 0:00:16]} 25... Rad8 {[%clk 0:00:56.5]} 26. Be3 {[%clk 0:00:15.5]}
26... Rd5 {[%clk 0:00:56.5]} 27. Qf4 {[%clk 0:00:14.9]} 27... h5 {[%clk
0:00:54.2]} 28. Rc1 {[%clk 0:00:13.6]} 28... Kh7 {[%clk 0:00:47]} 29. Rc7 {[%clk
0:00:12.3]} 29... Rd7 {[%clk 0:00:43.7]} 30. Rxd7 {[%clk 0:00:11.7]} 30... Bxd7
{[%clk 0:00:44.6]} 31. Qc7 {[%clk 0:00:11.8]} 31... Bf5 {[%clk 0:00:37.6]} 32.
d5 {[%clk 0:00:08.1]} 32... Kg6 {[%clk 0:00:34.7]} 33. Kf1 {[%clk 0:00:05.7]}
33... Bf6 {[%clk 0:00:32]} 34. Ke1 {[%clk 0:00:04.5]} 34... Rc8 {[%clk
0:00:30.5]} 35. Qxa7 {[%clk 0:00:04]} 35... b5 {[%clk 0:00:27.8]} 36. d6 {[%clk
0:00:04.2]} 36... Rd8 {[%clk 0:00:27.2]} 37. Bf4 {[%clk 0:00:04.1]} 37... b4
{[%clk 0:00:25]} 38. Qc7 {[%clk 0:00:03.7]} 38... Rd7 {[%clk 0:00:22.8]} 39. Qc5
{[%clk 0:00:03.4]} 39... Bxb2 {[%clk 0:00:21.1]} 40. Qxb4 {[%clk 0:00:03.5]}
40... Bf6 {[%clk 0:00:21.1]} 41. Qc5 {[%clk 0:00:03.9]} 41... Rb7 {[%clk
0:00:20.2]} 42. a4 {[%clk 0:00:04.1]} 42... Bd3 {[%clk 0:00:16.7]} 43. Kd2
{[%clk 0:00:04]} 43... Bf5 {[%clk 0:00:15.2]} 44. Be5 {[%clk 0:00:04.4]} 44...
Bd8 {[%clk 0:00:12.3]} 45. a5 {[%clk 0:00:04.7]} 45... Bd7 {[%clk 0:00:07.8]}
46. a6 {[%clk 0:00:04.3]} 46... Rb5 {[%clk 0:00:06.9]} 47. Qc3 {[%clk
0:00:02.4]} 47... Ba5 {[%clk 0:00:04.8]} 48. a7 {[%clk 0:00:02.9]} 48... Bxc3+
{[%clk 0:00:04.7]} 49. Bxc3 {[%clk 0:00:03.4]} 49... Ra5 {[%clk 0:00:05.6]} 50.
Bxa5 {[%clk 0:00:03.3]} 50... Bc6 {[%clk 0:00:03.9]} 51. d7 {[%clk 0:00:03.7]}
51... Bxd7 {[%clk 0:00:03.6]} 52. a8=Q {[%clk 0:00:04.1]} 52... Bc6 {[%clk
0:00:04.5]} 53. Qa7 {[%clk 0:00:05]} 1-0

[Event "*** SCC Grand Prix: Titled Tuesday Blitz"]
[Site "Chess.com"]
[Date "2020.06.09"]
[Round "10"]
[White "novocane"]
[Black "mattcolins2025"]
[Result "0-1"]
[WhiteElo "2207"]
[BlackElo "2386"]
[TimeControl "180+1"]
[EndTime "10:58:21 PDT"]
[Termination "mattcolins2025 won by resignation"]

1. d4 {[%clk 0:03:00.2]} 1... Nf6 {[%clk 0:02:59.4]} 2. c4 {[%clk 0:03:00.2]}
2... g6 {[%clk 0:02:59.9]} 3. Nc3 {[%clk 0:02:59.5]} 3... d6 {[%clk 0:03:00.4]}
4. e4 {[%clk 0:03:00.2]} 4... Bg7 {[%clk 0:03:00.9]} 5. f3 {[%clk 0:03:00.6]}
5... O-O {[%clk 0:03:01.4]} 6. Bg5 {[%clk 0:03:00.6]} 6... c5 {[%clk 0:02:58.6]}
7. d5 {[%clk 0:03:00.4]} 7... h6 {[%clk 0:02:58.6]} 8. Be3 {[%clk 0:03:00.3]}
8... e6 {[%clk 0:02:58.5]} 9. Qd2 {[%clk 0:03:00.2]} 9... exd5 {[%clk
0:02:57.3]} 10. cxd5 {[%clk 0:03:00.5]} 10... Kh7 {[%clk 0:02:55.6]} 11. h4
{[%clk 0:02:53.7]} 11... a6 {[%clk 0:02:46.6]} 12. h5 {[%clk 0:02:49.8]} 12...
g5 {[%clk 0:02:40.6]} 13. g4 {[%clk 0:02:35.1]} 13... b5 {[%clk 0:02:34.5]} 14.
Nge2 {[%clk 0:02:33.5]} 14... Nbd7 {[%clk 0:02:28.2]} 15. Ng3 {[%clk 0:02:32]}
15... Ne5 {[%clk 0:02:28.2]} 16. Be2 {[%clk 0:02:26]} 16... b4 {[%clk
0:02:20.5]} 17. Nd1 {[%clk 0:02:18.2]} 17... a5 {[%clk 0:02:10.6]} 18. O-O
{[%clk 0:02:14.6]} 18... Ba6 {[%clk 0:02:01]} 19. Bxa6 {[%clk 0:02:02]} 19...
Rxa6 {[%clk 0:02:01.9]} 20. Nf5 {[%clk 0:02:01.8]} 20... Rg8 {[%clk 0:01:52.5]}
21. Kh1 {[%clk 0:01:42.1]} 21... Ra8 {[%clk 0:01:47.9]} 22. b3 {[%clk
0:01:37.7]} 22... a4 {[%clk 0:01:45.1]} 23. Nb2 {[%clk 0:01:36.8]} 23... axb3
{[%clk 0:01:34.7]} 24. axb3 {[%clk 0:01:36.6]} 24... Ra3 {[%clk 0:01:35]} 25.
Rxa3 {[%clk 0:01:23.6]} 25... bxa3 {[%clk 0:01:35.1]} 26. Nc4 {[%clk 0:01:23.6]}
26... Nxc4 {[%clk 0:01:33.4]} 27. bxc4 {[%clk 0:01:23.7]} 27... Nd7 {[%clk
0:01:17.6]} 28. Nxd6 {[%clk 0:01:05.8]} 28... Ne5 {[%clk 0:01:15.8]} 29. Bxc5
{[%clk 0:00:56.2]} 29... Qf6 {[%clk 0:01:05.1]} 30. Bxa3 {[%clk 0:00:49.8]}
30... Nxg4 {[%clk 0:01:03.3]} 31. Nf5 {[%clk 0:00:34.9]} 31... Ne5 {[%clk
0:01:02.7]} 32. Bb2 {[%clk 0:00:30.3]} 32... g4 {[%clk 0:00:31.5]} 33. f4 {[%clk
0:00:19.7]} 33... Nxc4 {[%clk 0:00:25.4]} 34. Bxf6 {[%clk 0:00:17.6]} 34... Nxd2
{[%clk 0:00:25.9]} 35. Rd1 {[%clk 0:00:13.8]} 35... Nxe4 {[%clk 0:00:26.1]} 36.
Bxg7 {[%clk 0:00:08]} 36... Nf2+ {[%clk 0:00:25.6]} 37. Kg2 {[%clk 0:00:08.4]}
37... Nxd1 {[%clk 0:00:26]} 38. Bxh6 {[%clk 0:00:08.5]} 38... Nc3 {[%clk
0:00:17.2]} 39. d6 {[%clk 0:00:08.1]} 39... Ne4 {[%clk 0:00:15.6]} 40. Ne7
{[%clk 0:00:04.1]} 40... Rd8 {[%clk 0:00:14.8]} 41. Nf5 {[%clk 0:00:04.2]} 41...
Nxd6 {[%clk 0:00:14.5]} 42. Nxd6 {[%clk 0:00:04.5]} 42... Rxd6 {[%clk
0:00:13.6]} 43. Bg5 {[%clk 0:00:05]} 43... f6 {[%clk 0:00:13.5]} 44. Bh4 {[%clk
0:00:04.7]} 44... Kh6 {[%clk 0:00:14]} 45. f5 {[%clk 0:00:04.3]} 45... Kxh5
{[%clk 0:00:14.4]} 46. Bg3 {[%clk 0:00:04.8]} 46... Ra6 {[%clk 0:00:14.8]} 47.
Be1 {[%clk 0:00:04.2]} 47... Kg5 {[%clk 0:00:14.1]} 48. Bg3 {[%clk 0:00:02.6]}
48... Kxf5 {[%clk 0:00:14.4]} 49. Bh4 {[%clk 0:00:02.7]} 49... Ke4 {[%clk
0:00:13.6]} 50. Kg3 {[%clk 0:00:02.7]} 50... f5 {[%clk 0:00:14]} 51. Bg5 {[%clk
0:00:03.1]} 51... Ra3+ {[%clk 0:00:13.9]} 52. Kg2 {[%clk 0:00:02.9]} 52... f4
{[%clk 0:00:14.3]} 0-1

[Event "*** SCC Grand Prix: Titled Tuesday Blitz"]
[Site "Chess.com"]
[Date "2020.06.09"]
[Round "10"]
[White "maciejos95"]
[Black "VladimirBugayev"]
[Result "1-0"]
[WhiteElo "2465"]
[BlackElo "2267"]
[TimeControl "180+1"]
[EndTime "10:58:25 PDT"]
[Termination "maciejos95 won by resignation"]

1. e4 {[%clk 0:03:00.9]} 1... c6 {[%clk 0:02:58.7]} 2. d4 {[%clk 0:03:00.5]}
2... d5 {[%clk 0:02:58.9]} 3. Nc3 {[%clk 0:02:59.6]} 3... dxe4 {[%clk
0:02:58.2]} 4. Nxe4 {[%clk 0:03:00.5]} 4... Bf5 {[%clk 0:02:58.4]} 5. Ng3 {[%clk
0:03:00.5]} 5... Bg6 {[%clk 0:02:58.8]} 6. h4 {[%clk 0:03:00.8]} 6... h6 {[%clk
0:02:59.1]} 7. Nf3 {[%clk 0:03:01.2]} 7... Nd7 {[%clk 0:02:59.3]} 8. h5 {[%clk
0:02:59.9]} 8... Bh7 {[%clk 0:02:59.4]} 9. Bd3 {[%clk 0:03:00.4]} 9... Bxd3
{[%clk 0:02:59.4]} 10. Qxd3 {[%clk 0:03:01.3]} 10... e6 {[%clk 0:02:59.8]} 11.
Bd2 {[%clk 0:03:01.1]} 11... Ngf6 {[%clk 0:02:58.1]} 12. O-O-O {[%clk
0:03:01.2]} 12... Be7 {[%clk 0:02:58.4]} 13. Ne4 {[%clk 0:03:00.5]} 13... Nxe4
{[%clk 0:02:57.6]} 14. Qxe4 {[%clk 0:03:01]} 14... Nf6 {[%clk 0:02:57.8]} 15.
Qd3 {[%clk 0:03:01.4]} 15... Qd5 {[%clk 0:02:53.6]} 16. c4 {[%clk 0:03:01.4]}
16... Qe4 {[%clk 0:02:52.4]} 17. Qb3 {[%clk 0:03:01.5]} 17... b5 {[%clk
0:02:41.9]} 18. cxb5 {[%clk 0:02:58.3]} 18... O-O {[%clk 0:02:34.6]} 19. Rhe1
{[%clk 0:02:57.1]} 19... Qf5 {[%clk 0:02:14]} 20. Re5 {[%clk 0:02:56.1]} 20...
Qg4 {[%clk 0:02:13.7]} 21. bxc6 {[%clk 0:02:30.6]} 21... Rfc8 {[%clk 0:02:03.8]}
22. Kb1 {[%clk 0:02:10.4]} 22... Rab8 {[%clk 0:01:57.7]} 23. Rb5 {[%clk
0:02:06.7]} 23... Rxb5 {[%clk 0:01:38.3]} 24. Qxb5 {[%clk 0:02:05.8]} 24... Qe4+
{[%clk 0:01:38.8]} 25. Ka1 {[%clk 0:02:03.7]} 25... Rxc6 {[%clk 0:01:38.8]} 26.
Ne5 {[%clk 0:02:00.1]} 26... Rb6 {[%clk 0:01:36.8]} 27. Qc4 {[%clk 0:01:50.8]}
27... Rb8 {[%clk 0:01:22.6]} 28. Nc6 {[%clk 0:01:02.5]} 28... Re8 {[%clk
0:01:15.8]} 29. Nxa7 {[%clk 0:00:56.3]} 29... Qxg2 {[%clk 0:01:07.9]} 30. Qc6
{[%clk 0:00:51.9]} 30... Qxc6 {[%clk 0:01:02.8]} 31. Nxc6 {[%clk 0:00:52.8]}
31... Bd6 {[%clk 0:00:59]} 32. b4 {[%clk 0:00:50.4]} 32... Nd5 {[%clk
0:00:57.9]} 33. b5 {[%clk 0:00:50]} 33... Bc7 {[%clk 0:00:55.9]} 34. a4 {[%clk
0:00:42.4]} 34... Ra8 {[%clk 0:00:48.2]} 35. a5 {[%clk 0:00:41.8]} 35... Bxa5
{[%clk 0:00:38.8]} 36. Bxa5 {[%clk 0:00:36.1]} 36... Nb4 {[%clk 0:00:38.2]} 37.
Nxb4 {[%clk 0:00:17.7]} 37... Rxa5+ {[%clk 0:00:37.9]} 38. Na2 {[%clk 0:00:16]}
38... Rxb5 {[%clk 0:00:37.9]} 39. Rh1 {[%clk 0:00:16.6]} 39... Rf5 {[%clk
0:00:35.6]} 40. Rh2 {[%clk 0:00:16.4]} 40... Rf4 {[%clk 0:00:35.8]} 41. d5
{[%clk 0:00:16.5]} 41... exd5 {[%clk 0:00:35.5]} 42. Nc3 {[%clk 0:00:16.5]}
42... Rd4 {[%clk 0:00:32.1]} 43. Kb2 {[%clk 0:00:16.3]} 43... Rd2+ {[%clk
0:00:32.1]} 44. Kb3 {[%clk 0:00:16.2]} 44... d4 {[%clk 0:00:31.8]} 45. Ne4
{[%clk 0:00:16.5]} 45... Re2 {[%clk 0:00:31.1]} 46. Nc5 {[%clk 0:00:15.9]} 46...
Re5 {[%clk 0:00:29.5]} 47. Kc4 {[%clk 0:00:15.2]} 47... Kh7 {[%clk 0:00:22.3]}
48. Kxd4 {[%clk 0:00:15]} 48... Rf5 {[%clk 0:00:22.1]} 49. Ne4 {[%clk
0:00:14.1]} 49... g6 {[%clk 0:00:21.9]} 50. hxg6+ {[%clk 0:00:14.5]} 50... fxg6
{[%clk 0:00:22]} 51. Ke3 {[%clk 0:00:14.6]} 51... g5 {[%clk 0:00:21.3]} 52. Ng3
{[%clk 0:00:11.3]} 52... Ra5 {[%clk 0:00:19.4]} 53. Kf3 {[%clk 0:00:11.4]} 53...
Kg6 {[%clk 0:00:19.3]} 54. Rh1 {[%clk 0:00:11.1]} 54... Ra3+ {[%clk 0:00:16.4]}
55. Kg2 {[%clk 0:00:11.5]} 55... Ra2 {[%clk 0:00:14]} 56. Rb1 {[%clk 0:00:11.2]}
56... Ra6 {[%clk 0:00:13.9]} 57. Rd1 {[%clk 0:00:09.8]} 57... h5 {[%clk
0:00:13.8]} 58. Ne4 {[%clk 0:00:10.2]} 58... h4 {[%clk 0:00:13.3]} 59. Rd6+
{[%clk 0:00:10.2]} 59... Kf5 {[%clk 0:00:12]} 60. Rxa6 {[%clk 0:00:10]} 60...
Kxe4 {[%clk 0:00:12.5]} 61. Ra5 {[%clk 0:00:09.6]} 61... Kf4 {[%clk 0:00:12.3]}
62. Ra4+ {[%clk 0:00:09.6]} 62... Kf5 {[%clk 0:00:12.3]} 63. Kh3 {[%clk
0:00:10.1]} 1-0